[Event "*** Titled Tuesday Blitz"]
[Site "Chess.com"]
[Date "2021.03.02"]
[Round "3"]
[White "Vugar_Manafov"]
[Black "ChessNinja48"]
[Result "1-0"]
[WhiteElo "2619"]
[BlackElo "2413"]
[TimeControl "180+1"]
[EndTime "10:30:33 PST"]
[Termination "Vugar_Manafov won by resignation"]

1. Nf3 {[%clk 0:03:00.9]} 1... Nf6 {[%clk 0:02:57.9]} 2. g3 {[%clk 0:03:00.2]}
2... e6 {[%clk 0:02:57.7]} 3. Bg2 {[%clk 0:02:58.8]} 3... d5 {[%clk 0:02:58.6]}
4. O-O {[%clk 0:02:58.8]} 4... Be7 {[%clk 0:02:59.2]} 5. d3 {[%clk 0:02:59.7]}
5... O-O {[%clk 0:02:59.8]} 6. Nc3 {[%clk 0:03:00.4]} 6... c5 {[%clk 0:02:54.4]}
7. e4 {[%clk 0:03:00.8]} 7... Nc6 {[%clk 0:02:54.8]} 8. h3 {[%clk 0:03:00.3]}
8... Qc7 {[%clk 0:02:39]} 9. Bf4 {[%clk 0:02:57.7]} 9... e5 {[%clk 0:02:34.7]}
10. Bg5 {[%clk 0:02:54.9]} 10... dxe4 {[%clk 0:02:26.2]} 11. dxe4 {[%clk
0:02:52.4]} 11... Rd8 {[%clk 0:02:24.2]} 12. Qe2 {[%clk 0:02:51.4]} 12... Nd4
{[%clk 0:02:22.9]} 13. Nxd4 {[%clk 0:02:51.1]} 13... cxd4 {[%clk 0:02:18.3]} 14.
Bxf6 {[%clk 0:02:51.4]} 14... dxc3 {[%clk 0:02:14.3]} 15. Bxe7 {[%clk
0:02:48.9]} 15... Qxe7 {[%clk 0:02:13.3]} 16. bxc3 {[%clk 0:02:47.1]} 16... Be6
{[%clk 0:02:10.1]} 17. Rfd1 {[%clk 0:02:42.2]} 17... Qc5 {[%clk 0:02:08.1]} 18.
Rd3 {[%clk 0:02:31.1]} 18... Bc4 {[%clk 0:02:00.1]} 19. Rxd8+ {[%clk 0:02:29.7]}
19... Rxd8 {[%clk 0:02:01]} 20. Qe1 {[%clk 0:02:29]} 20... b5 {[%clk 0:01:59.8]}
21. a4 {[%clk 0:02:22.3]} 21... a6 {[%clk 0:01:39.9]} 22. axb5 {[%clk
0:02:21.7]} 22... axb5 {[%clk 0:01:37.4]} 23. h4 {[%clk 0:02:16.5]} 23... h6
{[%clk 0:01:18.1]} 24. Rd1 {[%clk 0:02:10.4]} 24... Rd6 {[%clk 0:01:13.2]} 25.
Rxd6 {[%clk 0:02:08.4]} 25... Qxd6 {[%clk 0:01:14.1]} 26. Bf3 {[%clk 0:02:08.2]}
26... g6 {[%clk 0:01:10.8]} 27. Qe3 {[%clk 0:02:05.2]} 27... Kg7 {[%clk
0:01:10.1]} 28. Kg2 {[%clk 0:02:03.3]} 28... h5 {[%clk 0:01:08.1]} 29. Be2
{[%clk 0:02:02.3]} 29... Bxe2 {[%clk 0:01:01.4]} 30. Qxe2 {[%clk 0:02:03.2]}
30... Qc5 {[%clk 0:01:01.1]} 31. Qd3 {[%clk 0:01:59.9]} 31... Kf6 {[%clk
0:00:50.5]} 32. Qd8+ {[%clk 0:01:57.6]} 32... Kg7 {[%clk 0:00:49.9]} 33. Qd3
{[%clk 0:01:57.3]} 33... Kf6 {[%clk 0:00:50]} 34. Kf3 {[%clk 0:01:57.1]} 34...
Ke7 {[%clk 0:00:48.2]} 35. Ke2 {[%clk 0:01:56.7]} 35... Qc6 {[%clk 0:00:45.4]}
36. Kd2 {[%clk 0:01:53.9]} 36... Qc5 {[%clk 0:00:44]} 37. Ke2 {[%clk 0:01:48.9]}
37... Qc6 {[%clk 0:00:44.1]} 38. Qe3 {[%clk 0:01:40.8]} 38... Ke6 {[%clk
0:00:40.1]} 39. f4 {[%clk 0:01:36.7]} 39... exf4 {[%clk 0:00:32.8]} 40. gxf4
{[%clk 0:01:37.6]} 40... Ke7 {[%clk 0:00:29.9]} 41. Qd4 {[%clk 0:01:36.5]} 41...
Ke8 {[%clk 0:00:24]} 42. Qh8+ {[%clk 0:01:34]} 42... Kd7 {[%clk 0:00:23.1]} 43.
Qd4+ {[%clk 0:01:34.5]} 43... Ke7 {[%clk 0:00:22.8]} 44. Ke3 {[%clk 0:01:33.5]}
44... Kf8 {[%clk 0:00:21.4]} 45. Qh8+ {[%clk 0:01:32.3]} 45... Ke7 {[%clk
0:00:21.6]} 46. Qd4 {[%clk 0:01:32.5]} 46... Kf8 {[%clk 0:00:21.2]} 47. Kd3
{[%clk 0:01:32.4]} 47... Kg8 {[%clk 0:00:20.1]} 48. c4 {[%clk 0:01:23.5]} 48...
bxc4+ {[%clk 0:00:19.2]} 49. Qxc4 {[%clk 0:01:24.4]} 49... Qd6+ {[%clk
0:00:19.7]} 50. Ke3 {[%clk 0:01:23.6]} 50... Qd1 {[%clk 0:00:19.6]} 51. Qe2
{[%clk 0:01:19.2]} 51... Qc1+ {[%clk 0:00:19]} 52. Qd2 {[%clk 0:01:18.9]} 52...
Qg1+ {[%clk 0:00:19.2]} 53. Qf2 {[%clk 0:01:19.1]} 53... Qc1+ {[%clk 0:00:18.1]}
54. Kd3 {[%clk 0:01:18.9]} 54... Qa3+ {[%clk 0:00:17.4]} 55. c3 {[%clk
0:01:18.1]} 55... Qb3 {[%clk 0:00:17.9]} 56. Qc2 {[%clk 0:01:14.7]} 56... Qb8
{[%clk 0:00:16.3]} 57. Ke3 {[%clk 0:01:08.8]} 57... Qb6+ {[%clk 0:00:16.6]} 58.
Kf3 {[%clk 0:01:08]} 58... Qf6 {[%clk 0:00:16.9]} 59. Kg3 {[%clk 0:01:06.6]}
59... Qe6 {[%clk 0:00:17.1]} 60. Qe2 {[%clk 0:01:05.5]} 60... Qb3 {[%clk
0:00:17.7]} 61. Qd3 {[%clk 0:01:04.1]} 61... Kf8 {[%clk 0:00:16.8]} 62. f5
{[%clk 0:01:00.3]} 62... Qb8+ {[%clk 0:00:16]} 63. Kf3 {[%clk 0:01:00.5]} 63...
Qh2 {[%clk 0:00:15.6]} 64. Qd8+ {[%clk 0:00:59]} 64... Kg7 {[%clk 0:00:15]} 65.
Ke3 {[%clk 0:00:38.8]} 65... Qg3+ {[%clk 0:00:13.7]} 66. Kd4 {[%clk 0:00:38.5]}
66... gxf5 {[%clk 0:00:14]} 67. exf5 {[%clk 0:00:30.7]} 67... Qf4+ {[%clk
0:00:13.9]} 68. Kc5 {[%clk 0:00:30.3]} 68... Qxf5+ {[%clk 0:00:14.1]} 69. Qd5
{[%clk 0:00:30.5]} 69... Qc8+ {[%clk 0:00:12.6]} 70. Kb4 {[%clk 0:00:25.9]}
70... f5 {[%clk 0:00:11.1]} 71. c4 {[%clk 0:00:25.1]} 71... Kf6 {[%clk
0:00:10.9]} 72. Qd6+ {[%clk 0:00:24.6]} 72... Kf7 {[%clk 0:00:10.6]} 73. c5
{[%clk 0:00:23.5]} 73... Qb7+ {[%clk 0:00:10.6]} 74. Kc4 {[%clk 0:00:23.3]}
74... Qe4+ {[%clk 0:00:10.5]} 75. Kb5 {[%clk 0:00:18.1]} 75... Qb1+ {[%clk
0:00:10.7]} 76. Ka6 {[%clk 0:00:18]} 76... Qa1+ {[%clk 0:00:10.2]} 77. Kb7
{[%clk 0:00:18.6]} 77... Qb1+ {[%clk 0:00:10.4]} 78. Qb6 {[%clk 0:00:18.9]}
78... Qe4+ {[%clk 0:00:10.2]} 79. Kb8 {[%clk 0:00:18.8]} 79... f4 {[%clk
0:00:09.9]} 80. c6 {[%clk 0:00:19.1]} 80... f3 {[%clk 0:00:06.5]} 81. c7 {[%clk
0:00:19.1]} 81... Qe5 {[%clk 0:00:06.7]} 82. Qb3+ {[%clk 0:00:19.5]} 82... Ke7
{[%clk 0:00:06]} 83. Qxf3 {[%clk 0:00:19.7]} 83... Kd7 {[%clk 0:00:06.7]} 84.
Qf5+ {[%clk 0:00:17.5]} 1-0

[Event "*** Titled Tuesday Blitz"]
[Site "Chess.com"]
[Date "2021.03.02"]
[Round "3"]
[White "Aisen1011"]
[Black "WPWPWP-2015"]
[Result "1-0"]
[WhiteElo "2223"]
[BlackElo "2482"]
[TimeControl "180+1"]
[EndTime "10:30:38 PST"]
[Termination "Aisen1011 won by checkmate"]

1. d4 {[%clk 0:03:00.3]} 1... Nf6 {[%clk 0:02:59.1]} 2. c4 {[%clk 0:03:00.7]}
2... c5 {[%clk 0:02:57.4]} 3. d5 {[%clk 0:03:00.7]} 3... e6 {[%clk 0:02:57]} 4.
Nc3 {[%clk 0:03:00.7]} 4... exd5 {[%clk 0:02:57.1]} 5. cxd5 {[%clk 0:03:01.6]}
5... d6 {[%clk 0:02:56.6]} 6. e4 {[%clk 0:03:02]} 6... g6 {[%clk 0:02:55.4]} 7.
Nf3 {[%clk 0:03:02.1]} 7... a6 {[%clk 0:02:55.1]} 8. a4 {[%clk 0:03:02.1]} 8...
Bg7 {[%clk 0:02:55.2]} 9. Be2 {[%clk 0:03:02.5]} 9... O-O {[%clk 0:02:55.2]} 10.
O-O {[%clk 0:03:02.5]} 10... Nfd7 {[%clk 0:02:55.2]} 11. Qc2 {[%clk 0:03:02]}
11... Ne5 {[%clk 0:02:53.9]} 12. Bf4 {[%clk 0:03:01.4]} 12... Nbd7 {[%clk
0:02:52.3]} 13. h3 {[%clk 0:03:01.9]} 13... Re8 {[%clk 0:02:51.4]} 14. Rfe1
{[%clk 0:03:01.6]} 14... Nxf3+ {[%clk 0:02:50.3]} 15. Bxf3 {[%clk 0:03:02.5]}
15... Ne5 {[%clk 0:02:49.6]} 16. Be2 {[%clk 0:03:02.8]} 16... f5 {[%clk
0:02:48.1]} 17. Bh2 {[%clk 0:02:55.9]} 17... c4 {[%clk 0:02:31]} 18. f4 {[%clk
0:02:54.3]} 18... Nd3 {[%clk 0:02:30.1]} 19. Bxd3 {[%clk 0:02:54.4]} 19... cxd3
{[%clk 0:02:28.3]} 20. Qxd3 {[%clk 0:02:55.3]} 20... fxe4 {[%clk 0:02:27.9]} 21.
Rxe4 {[%clk 0:02:44.7]} 21... Qb6+ {[%clk 0:02:27]} 22. Kh1 {[%clk 0:02:39.6]}
22... Bf5 {[%clk 0:02:25.9]} 23. Rxe8+ {[%clk 0:02:36]} 23... Rxe8 {[%clk
0:02:26.8]} 24. Qd2 {[%clk 0:02:34.6]} 24... h5 {[%clk 0:02:20.5]} 25. Bg1
{[%clk 0:02:33.9]} 25... Qb4 {[%clk 0:02:14.2]} 26. a5 {[%clk 0:02:21.6]} 26...
Qc4 {[%clk 0:02:02.4]} 27. Re1 {[%clk 0:01:15.8]} 27... Rxe1 {[%clk 0:01:58]}
28. Qxe1 {[%clk 0:01:15.7]} 28... Qxf4 {[%clk 0:01:57.1]} 29. Qe8+ {[%clk
0:01:01.7]} 29... Kh7 {[%clk 0:01:55.9]} 30. Qe7 {[%clk 0:00:59.6]} 30... Kh8
{[%clk 0:01:40.7]} 31. Qe8+ {[%clk 0:00:57]} 31... Kh7 {[%clk 0:01:40.1]} 32.
Qe7 {[%clk 0:00:44.5]} 32... Qb4 {[%clk 0:01:22.9]} 33. Ne2 {[%clk 0:00:27.8]}
33... Qe1 {[%clk 0:01:16.1]} 34. Kh2 {[%clk 0:00:21.3]} 34... Kg8 {[%clk
0:01:07.3]} 35. Qe8+ {[%clk 0:00:20.8]} 35... Bf8 {[%clk 0:01:02.6]} 36. Bd4
{[%clk 0:00:09.5]} 36... Qd2 {[%clk 0:00:41.8]} 37. Bf6 {[%clk 0:00:06.8]} 37...
Qxd5 {[%clk 0:00:39]} 38. Nf4 {[%clk 0:00:04.6]} 38... Qf7 {[%clk 0:00:38.6]}
39. Qd8 {[%clk 0:00:02.6]} 39... Kh7 {[%clk 0:00:36.5]} 40. Nd5 {[%clk
0:00:02.9]} 40... Be6 {[%clk 0:00:24.5]} 41. Nb6 {[%clk 0:00:02.4]} 41... g5
{[%clk 0:00:19.7]} 42. Bxg5 {[%clk 0:00:02.5]} 42... Bg7 {[%clk 0:00:19.3]} 43.
Qe7 {[%clk 0:00:03.1]} 43... Be5+ {[%clk 0:00:19]} 44. Kh1 {[%clk 0:00:03.2]}
44... Qxe7 {[%clk 0:00:19.2]} 45. Bxe7 {[%clk 0:00:03.3]} 45... Kg6 {[%clk
0:00:19.9]} 46. Na8 {[%clk 0:00:02.8]} 46... d5 {[%clk 0:00:18.8]} 47. Bc5
{[%clk 0:00:01.7]} 47... Bxb2 {[%clk 0:00:18.2]} 48. Nb6 {[%clk 0:00:02.6]}
48... Bc3 {[%clk 0:00:18.3]} 49. Na4 {[%clk 0:00:02.8]} 49... Bxa5 {[%clk
0:00:18.2]} 50. Nb2 {[%clk 0:00:03.3]} 50... Bc7 {[%clk 0:00:18.2]} 51. Nd3
{[%clk 0:00:03.7]} 51... b6 {[%clk 0:00:18.6]} 52. Bd4 {[%clk 0:00:03.6]} 52...
Bf5 {[%clk 0:00:18.7]} 53. Nb4 {[%clk 0:00:03.3]} 53... Be4 {[%clk 0:00:14.4]}
54. Nxa6 {[%clk 0:00:03.6]} 54... Bd8 {[%clk 0:00:14.8]} 55. Nb4 {[%clk
0:00:03.5]} 55... Kf5 {[%clk 0:00:14.3]} 56. Nc6 {[%clk 0:00:03.7]} 56... Bc7
{[%clk 0:00:14.4]} 57. Kg1 {[%clk 0:00:03.9]} 57... Ke6 {[%clk 0:00:13.8]} 58.
Kf2 {[%clk 0:00:04.2]} 58... Kd6 {[%clk 0:00:14.1]} 59. Nb4 {[%clk 0:00:04.6]}
59... b5 {[%clk 0:00:13.7]} 60. g4 {[%clk 0:00:04.9]} 60... Ba5 {[%clk
0:00:13.4]} 61. Na6 {[%clk 0:00:04.4]} 61... h4 {[%clk 0:00:12.5]} 62. g5 {[%clk
0:00:04.2]} 62... Kc6 {[%clk 0:00:11.5]} 63. Ke3 {[%clk 0:00:03.8]} 63... Kb7
{[%clk 0:00:11.1]} 64. Nc5+ {[%clk 0:00:04]} 64... Kc6 {[%clk 0:00:11.3]} 65.
Nxe4 {[%clk 0:00:04.9]} 65... dxe4 {[%clk 0:00:11.5]} 66. g6 {[%clk 0:00:05.6]}
66... Kd5 {[%clk 0:00:03.8]} 67. g7 {[%clk 0:00:06]} 67... Bd2+ {[%clk
0:00:02.2]} 68. Kxd2 {[%clk 0:00:06.1]} 68... Kxd4 {[%clk 0:00:03]} 69. g8=Q
{[%clk 0:00:07]} 69... e3+ {[%clk 0:00:03.5]} 70. Ke2 {[%clk 0:00:07.6]} 70...
b4 {[%clk 0:00:03.9]} 71. Qg4+ {[%clk 0:00:08.5]} 71... Kc3 {[%clk 0:00:04.3]}
72. Kxe3 {[%clk 0:00:09.4]} 72... b3 {[%clk 0:00:04.9]} 73. Qd4+ {[%clk
0:00:09.8]} 73... Kc2 {[%clk 0:00:04.9]} 74. Qd3+ {[%clk 0:00:10.3]} 74... Kb2
{[%clk 0:00:04.8]} 75. Kd2 {[%clk 0:00:10.5]} 75... Ka1 {[%clk 0:00:05.1]} 76.
Qa6+ {[%clk 0:00:10.5]} 76... Kb2 {[%clk 0:00:04.9]} 77. Qa4 {[%clk 0:00:08.7]}
77... Kb1 {[%clk 0:00:04.3]} 78. Qxb3+ {[%clk 0:00:08.9]} 78... Ka1 {[%clk
0:00:05.2]} 79. Qa3+ {[%clk 0:00:08.9]} 79... Kb1 {[%clk 0:00:05.5]} 80. Qb4+
{[%clk 0:00:08.8]} 80... Ka2 {[%clk 0:00:05.2]} 81. Kc2 {[%clk 0:00:09.1]} 81...
Ka1 {[%clk 0:00:06.1]} 82. Qb2# {[%clk 0:00:09.7]} 1-0

[Event "*** Titled Tuesday Blitz"]
[Site "Chess.com"]
[Date "2021.03.02"]
[Round "3"]
[White "Shahaliyev"]
[Black "Slovak_fighter2000"]
[Result "1-0"]
[WhiteElo "2721"]
[BlackElo "2432"]
[TimeControl "180+1"]
[EndTime "10:30:53 PST"]
[Termination "Shahaliyev won on time"]

1. Nf3 {[%clk 0:03:00.9]} 1... d5 {[%clk 0:02:57.9]} 2. c4 {[%clk 0:03:00.9]}
2... e6 {[%clk 0:02:56.1]} 3. b3 {[%clk 0:03:00.8]} 3... Nf6 {[%clk 0:02:54.5]}
4. Bb2 {[%clk 0:03:00.2]} 4... Be7 {[%clk 0:02:54]} 5. Qc2 {[%clk 0:02:59]} 5...
b6 {[%clk 0:02:51]} 6. e3 {[%clk 0:02:58.9]} 6... Bb7 {[%clk 0:02:51.3]} 7. Nc3
{[%clk 0:02:58.1]} 7... Nbd7 {[%clk 0:02:51.1]} 8. Be2 {[%clk 0:02:57.9]} 8...
c5 {[%clk 0:02:48.1]} 9. cxd5 {[%clk 0:02:51.4]} 9... exd5 {[%clk 0:02:45.6]}
10. d4 {[%clk 0:02:51.8]} 10... O-O {[%clk 0:02:44.9]} 11. O-O {[%clk
0:02:51.4]} 11... Ne4 {[%clk 0:02:42]} 12. dxc5 {[%clk 0:02:46]} 12... Nxc3
{[%clk 0:02:38.7]} 13. Qxc3 {[%clk 0:02:41.3]} 13... Bf6 {[%clk 0:02:38.4]} 14.
Qd2 {[%clk 0:02:40.9]} 14... bxc5 {[%clk 0:02:36.8]} 15. Bxf6 {[%clk 0:02:29.5]}
15... Nxf6 {[%clk 0:02:32.5]} 16. Rac1 {[%clk 0:02:30.4]} 16... Qb6 {[%clk
0:02:31.9]} 17. Ne5 {[%clk 0:02:22]} 17... Rfe8 {[%clk 0:02:26.7]} 18. Nd3
{[%clk 0:02:19.8]} 18... Ne4 {[%clk 0:02:25]} 19. Qc2 {[%clk 0:02:19.3]} 19...
Rac8 {[%clk 0:02:24.5]} 20. Bg4 {[%clk 0:02:18.7]} 20... Rc7 {[%clk 0:02:21.6]}
21. Rfd1 {[%clk 0:02:01.8]} 21... Bc8 {[%clk 0:02:08.4]} 22. Bxc8 {[%clk
0:01:59.9]} 22... Rexc8 {[%clk 0:02:09.3]} 23. Nf4 {[%clk 0:02:00.2]} 23... Nf6
{[%clk 0:01:57.9]} 24. Nxd5 {[%clk 0:01:59.5]} 24... Nxd5 {[%clk 0:01:58.8]} 25.
Rxd5 {[%clk 0:01:59.9]} 25... h6 {[%clk 0:01:53.3]} 26. Qc4 {[%clk 0:01:59.1]}
26... Qa5 {[%clk 0:01:48.3]} 27. a4 {[%clk 0:01:51.9]} 27... Rb7 {[%clk
0:01:44]} 28. Rxc5 {[%clk 0:01:37.1]} 28... Rxc5 {[%clk 0:01:44.9]} 29. Qxc5
{[%clk 0:01:38]} 29... Qxc5 {[%clk 0:01:43.3]} 30. Rxc5 {[%clk 0:01:38.9]} 30...
Rxb3 {[%clk 0:01:43.7]} 31. g3 {[%clk 0:01:38.4]} 31... Rb7 {[%clk 0:01:36.2]}
32. Ra5 {[%clk 0:01:36.6]} 32... g6 {[%clk 0:01:33.7]} 33. g4 {[%clk 0:01:36.8]}
33... Kg7 {[%clk 0:01:33.3]} 34. Kg2 {[%clk 0:01:36.6]} 34... Kf6 {[%clk
0:01:30.4]} 35. h4 {[%clk 0:01:31.5]} 35... Rc7 {[%clk 0:01:28.9]} 36. Kg3
{[%clk 0:01:31.2]} 36... Rb7 {[%clk 0:01:28.6]} 37. f3 {[%clk 0:01:16.6]} 37...
g5 {[%clk 0:01:27.6]} 38. Ra6+ {[%clk 0:01:11]} 38... Kg7 {[%clk 0:01:27.1]} 39.
h5 {[%clk 0:01:08.7]} 39... Rb3 {[%clk 0:01:21.4]} 40. Kf2 {[%clk 0:01:04.4]}
40... Rb2+ {[%clk 0:01:21.1]} 41. Ke1 {[%clk 0:01:04.6]} 41... Rb7 {[%clk
0:01:16.7]} 42. Ke2 {[%clk 0:01:04.4]} 42... Rd7 {[%clk 0:01:16]} 43. f4 {[%clk
0:00:52.2]} 43... gxf4 {[%clk 0:01:14.4]} 44. exf4 {[%clk 0:00:53.1]} 44... Rd4
{[%clk 0:01:11.8]} 45. Ke3 {[%clk 0:00:53.2]} 45... Rd7 {[%clk 0:01:11.4]} 46.
Ke4 {[%clk 0:00:49.5]} 46... Rb7 {[%clk 0:01:09.9]} 47. Ke5 {[%clk 0:00:40]}
47... Re7+ {[%clk 0:01:08.4]} 48. Kf5 {[%clk 0:00:36.6]} 48... Rc7 {[%clk
0:01:07.6]} 49. Ke4 {[%clk 0:00:26]} 49... Re7+ {[%clk 0:01:05.5]} 50. Kf3
{[%clk 0:00:26.5]} 50... Rc7 {[%clk 0:01:04.9]} 51. Kg3 {[%clk 0:00:27]} 51...
Rc3+ {[%clk 0:01:03.4]} 52. Kf2 {[%clk 0:00:27.5]} 52... Rc4 {[%clk 0:01:02.2]}
53. Kf3 {[%clk 0:00:28]} 53... Rc3+ {[%clk 0:01:02.1]} 54. Ke4 {[%clk
0:00:28.4]} 54... Rc4+ {[%clk 0:01:02.4]} 55. Ke5 {[%clk 0:00:27.3]} 55... Rc7
{[%clk 0:00:56.2]} 56. f5 {[%clk 0:00:27.6]} 56... Re7+ {[%clk 0:00:49.1]} 57.
Kd5 {[%clk 0:00:24.6]} 57... Rd7+ {[%clk 0:00:43.1]} 58. Rd6 {[%clk 0:00:24.6]}
58... Rb7 {[%clk 0:00:41.8]} 59. f6+ {[%clk 0:00:24.3]} 59... Kh7 {[%clk
0:00:39]} 60. Kc6 {[%clk 0:00:17.8]} 60... Rb6+ {[%clk 0:00:36.6]} 61. Kc5
{[%clk 0:00:18.4]} 61... Rb7 {[%clk 0:00:35.8]} 62. a5 {[%clk 0:00:19]} 62...
Rc7+ {[%clk 0:00:32.3]} 63. Rc6 {[%clk 0:00:17.7]} 63... Rd7 {[%clk 0:00:30.1]}
64. a6 {[%clk 0:00:17.4]} 64... Kg8 {[%clk 0:00:25.6]} 65. Rc8+ {[%clk
0:00:17.2]} 65... Kh7 {[%clk 0:00:25]} 66. Rc6 {[%clk 0:00:09.9]} 66... Kg8
{[%clk 0:00:22.9]} 67. Rd6 {[%clk 0:00:10.5]} 67... Rc7+ {[%clk 0:00:21.9]} 68.
Kd5 {[%clk 0:00:11.1]} 68... Kh7 {[%clk 0:00:19]} 69. Ke5 {[%clk 0:00:10.5]}
69... Rc5+ {[%clk 0:00:16.5]} 70. Kd4 {[%clk 0:00:10.6]} 70... Rc7 {[%clk
0:00:13]} 71. Ke4 {[%clk 0:00:06.2]} 71... Kg8 {[%clk 0:00:13]} 72. Kf5 {[%clk
0:00:06.5]} 72... Kh7 {[%clk 0:00:13]} 73. Kf4 {[%clk 0:00:06.5]} 73... Rc4+
{[%clk 0:00:12.7]} 74. Kg3 {[%clk 0:00:06.9]} 74... Rc3+ {[%clk 0:00:12.8]} 75.
Kh4 {[%clk 0:00:07.5]} 75... Rc7 {[%clk 0:00:13.4]} 76. Rd4 {[%clk 0:00:07.6]}
76... Kg8 {[%clk 0:00:12.2]} 77. Rd8+ {[%clk 0:00:07.8]} 77... Kh7 {[%clk
0:00:12.6]} 78. Rf8 {[%clk 0:00:07.8]} 78... Rd7 {[%clk 0:00:11.7]} 79. Rb8
{[%clk 0:00:06.9]} 79... Rd6 {[%clk 0:00:11.6]} 80. Rb7 {[%clk 0:00:07.5]} 80...
Rxf6 {[%clk 0:00:11.6]} 81. Rxa7 {[%clk 0:00:07.6]} 81... Kg7 {[%clk 0:00:10.4]}
82. Kg3 {[%clk 0:00:07.8]} 82... Rb6 {[%clk 0:00:09.6]} 83. Kf4 {[%clk
0:00:07.5]} 83... Rb4+ {[%clk 0:00:07.9]} 84. Kf5 {[%clk 0:00:07.9]} 84... Ra4
{[%clk 0:00:08.8]} 85. g5 {[%clk 0:00:05.7]} 85... Ra5+ {[%clk 0:00:08.7]} 86.
Kf4 {[%clk 0:00:05.2]} 86... hxg5+ {[%clk 0:00:09.6]} 87. Kg4 {[%clk 0:00:05.3]}
1-0